fUST/lending_fUST_20240812
["ID","MTS","AMOUNT","RATE_DAILY","PERIOD"]
[334685437,1723469461227,-875.31,0.00021643,3]
[334685438,1723469461237,-500.0,0.00021643,3]
[334685439,1723469461246,-609.93,0.00021643,3]
[334685440,1723469461254,-625.18,0.00021643,3]
[334685441,1723469461265,-500.0,0.00021643,3]
[334685442,1723469461274,-500.0,0.00021643,3]
[334685443,1723469461283,-500.0,0.00021643,3]
[334685444,1723469461293,-791.62,0.00021643,3]
[334685445,1723469461303,-500.0,0.00021643,3]
[334685446,1723469461313,-500.0,0.00021643,3]
[334685447,1723469461322,-500.0,0.00021643,3]
[334685448,1723469461331,-500.0,0.00021643,3]
[334685449,1723469461341,-634.92,0.00021643,3]
[334685450,1723469461350,-606.89,0.00021643,3]
[334685451,1723469461360,-621.77354407,0.00021643,3]
[334685452,1723469461369,-500.0,0.00021643,3]
[334685453,1723469461379,-500.0,0.00021643,3]
[334685454,1723469461389,-829.85,0.00021643,3]
[334685455,1723469461403,-2119.11,0.00021643,3]
[334685456,1723469461415,-597.81,0.00021643,3]
[334685457,1723469461424,-500.0,0.00021643,3]
[334685458,1723469461433,-500.0,0.00021643,3]
[334685459,1723469461443,-1424.09,0.00021643,3]
[334685460,1723469461452,-500.0,0.00021643,3]
[334685461,1723469461461,-500.0,0.00021643,3]
[334685462,1723469461471,-500.0,0.00021643,3]
[334685463,1723469461481,-1052.48,0.00021643,3]
[334685464,1723469461490,-709.13,0.00021643,3]
[334685465,1723469461499,-581.43,0.00021643,3]
[334685466,1723469461508,-500.0,0.00021643,3]
[334685467,1723469461518,-500.0,0.00021643,3]
[334685468,1723469461527,-521.61,0.00021643,3]
[334685469,1723469461537,-1053.49,0.00021643,3]
[334685470,1723469461547,-500.0,0.00021643,3]
[334685471,1723469461556,-1614.62,0.00021643,3]
[334685472,1723469461565,-518.21,0.00021643,3]
[334685473,1723469461575,-511.905593,0.00021643,2]
[334685474,1723469461586,-1139.51,0.00021643,3]
[334685475,1723469461595,-511.90559793,0.00021643,2]
[334685476,1723469461605,-500.0,0.00021643,3]
[334685477,1723469461616,-500.0,0.00021643,3]
[334685478,1723469461626,-1544.26,0.00021643,3]
[334685479,1723469461636,-1451.28,0.00021643,3]
[334685480,1723469461645,-500.0,0.00021643,2]
[334685481,1723469461658,-1482.26,0.00021643,3]
[334685482,1723469461667,-500.0,0.00021643,3]
[334685483,1723469461677,-500.0,0.00021643,3]
[334685484,1723469461686,-503.97228914,0.00021643,3]
[334685485,1723469461696,-500.0,0.00021643,3]
[334685486,1723469461705,-2342.91,0.00021643,3]
[334685487,1723469461715,-500.0,0.00021643,3]
[334685488,1723469461724,-1334.65,0.00021643,3]
[334685489,1723469461734,-500.0,0.00021643,3]
[334685490,1723469461744,-792.5,0.00021643,3]
[334685491,1723469461754,-500.0,0.00021643,3]
[334685492,1723469461763,-413.764054,0.00021643,2]
[334685493,1723469461773,-500.0,0.00021643,3]
[334685494,1723469461782,-413.764058,0.00021643,2]
[334685495,1723469461791,-6539.4,0.00021643,3]
[334685496,1723469461800,-500.0,0.00021643,3]
[334685497,1723469461896,-534.12,0.00021643,2]
[334685498,1723469461909,-1001.68,0.00021643,3]
[334685499,1723469461919,-409.24520863,0.00021643,3]
[334685500,1723469461929,-2046.93,0.00021643,3]
[334685501,1723469461939,-500.0,0.00021643,3]
[334685502,1723469461949,-1795.55,0.00021643,3]
[334685503,1723469461958,-500.0,0.00021643,3]
[334685504,1723469461970,-500.0,0.00021643,3]
[334685505,1723469461980,-500.0,0.00021643,3]
[334685506,1723469461989,-1931.14,0.00021643,3]
[334685507,1723469461999,-500.0,0.00021643,3]
[334685508,1723469462008,-500.0,0.00021643,3]
[334685509,1723469462017,-500.0,0.00021643,3]
[334685510,1723469462026,-1101.24,0.00021643,3]
[334685511,1723469462036,-529.89,0.00021643,3]
[334685512,1723469462046,-500.0,0.00021643,3]
[334685513,1723469462056,-761.7,0.00021643,3]
[334685514,1723469462065,-769.72,0.00021643,3]
[334685515,1723469462075,-500.0,0.00021643,3]
[334685516,1723469462084,-1645.37,0.00021643,3]
[334685517,1723469462094,-530.52,0.00021643,3]
[334685518,1723469462104,-536.4,0.00021643,3]
[334685519,1723469462113,-500.0,0.00021643,3]
[334685520,1723469462123,-854.3,0.00021643,3]
[334685521,1723469462132,-7227.56,0.00021643,3]
[334685522,1723469462141,-500.0,0.00021643,3]
[334685523,1723469462153,-500.0,0.00021643,3]
[334685524,1723469462163,-500.0,0.00021643,3]
[334685525,1723469462173,-743.55,0.00021643,3]
[334685526,1723469462183,-1337.68,0.00021643,3]
[334685527,1723469462192,-500.0,0.00021643,3]
[334685528,1723469462202,-500.0,0.00021643,3]
[334685529,1723469462211,-500.0,0.00021643,3]
[334685530,1723469462221,-2582.81,0.00021643,3]
[334685531,1723469462231,-500.0,0.00021643,3]
[334685532,1723469462241,-500.0,0.00021643,3]
[334685533,1723469462251,-827.28,0.00021643,3]
[334685534,1723469462261,-500.0,0.00021643,3]
[334685535,1723469462270,-786.74,0.00021643,3]
[334685536,1723469462280,-1740.42,0.00021643,3]
[334685537,1723469462291,-1325.33,0.00021643,3]
[334685538,1723469462301,-500.0,0.00021643,3]
[334685539,1723469462310,-500.0,0.00021643,3]
[334685540,1723469462320,-932.14,0.00021643,3]
[334685541,1723469462330,-500.0,0.00021643,3]
[334685542,1723469462339,-500.0,0.00021643,3]
[334685543,1723469462349,-1941.27,0.00021643,3]
[334685544,1723469462358,-500.0,0.00021643,3]
[334685545,1723469462368,-587.25,0.00021643,3]
[334685546,1723469462378,-500.0,0.00021643,3]
[334685547,1723469462388,-500.0,0.00021643,3]
[334685548,1723469462398,-500.0,0.00021643,3]
[334685549,1723469462413,-500.0,0.00021643,3]
[334685550,1723469462422,-3749.33,0.00021643,3]
[334685551,1723469462431,-8703.45,0.00021643,3]
[334685552,1723469462441,-706.021002,0.00021643,2]
[334685553,1723469462451,-2530.68,0.00021643,3]
[334685554,1723469462459,-500.0,0.00021643,3]
[334685555,1723469462468,-1828.7,0.00021643,3]
[334685556,1723469462477,-706.021002,0.00021643,2]
[334685557,1723469462487,-151.0,0.00021643,2]
[334685558,1723469462496,-5397.21,0.00021643,3]
[334685559,1723469462506,-675.95,0.00021643,3]
[334685560,1723469462516,-500.0,0.00021643,3]
[334685561,1723469462526,-2519.31,0.00021643,3]
[334685562,1723469462545,-264.289944,0.00021643,2]
[334685563,1723469462563,-500.0,0.00021643,3]
[334685564,1723469462583,-1577.49,0.00021643,3]
[334685565,1723469462603,-264.289942,0.00021643,2]
[334685566,1723469462624,-500.0,0.00021643,3]
[334685567,1723469462641,-500.0,0.00021643,3]
[334685568,1723469462666,-500.0,0.00021643,3]
[334685569,1723469462680,-500.0,0.00021643,3]
[334685570,1723469462697,-500.0,0.00021643,3]
[334685571,1723469462717,-500.0,0.00021643,3]
[334685572,1723469462735,-500.0,0.00021643,3]
[334685573,1723469462749,-1656.99,0.00021643,3]
[334685574,1723469462767,-1691.43,0.00021643,3]
[334685575,1723469462784,-500.0,0.00021643,3]
[334685576,1723469462800,-2631.68,0.00021643,3]
[334685577,1723469462813,-988.56,0.00021643,3]
[334685578,1723469462828,-1109.71,0.00021643,3]
[334685579,1723469462842,-500.0,0.00021643,3]
[334685580,1723469462857,-500.0,0.00021643,3]
[334685581,1723469462872,-12516.51,0.00021643,3]
[334685582,1723469462890,-668.98,0.00021643,3]
[334685583,1723469462908,-2464.56,0.00021643,3]
[334685584,1723469462923,-500.0,0.00021643,3]
[334685585,1723469462938,-500.0,0.00021643,3]
[334685586,1723469462953,-500.0,0.00021643,3]
[334685587,1723469462970,-1609.68,0.00021643,3]
[334685588,1723469462985,-825.74,0.00021643,3]
[334685589,1723469463000,-518.39715278,0.00021643,3]
[334685590,1723469463014,-500.0,0.00021643,3]
[334685591,1723469463029,-3882.9,0.00021643,3]
[334685592,1723469463044,-13392.86,0.00021643,3]
[334685593,1723469463058,-1157.59,0.00021643,3]
[334685594,1723469463074,-500.0,0.00021643,3]
[334685595,1723469463089,-500.0,0.00021643,3]
[334685596,1723469463104,-500.0,0.00021643,3]
[334685597,1723469463118,-954.32,0.00021643,3]
[334685598,1723469463133,-2248.77,0.00021643,3]
[334685599,1723469463148,-500.0,0.00021643,3]
[334685600,1723469463171,-500.0,0.00021643,3]
[334685601,1723469463185,-1443.84,0.00021643,3]
[334685602,1723469463195,-500.0,0.00021643,3]
[334685603,1723469463205,-1824.79,0.00021643,3]
[334685604,1723469463215,-500.0,0.00021643,3]
[334685605,1723469463225,-2252.73,0.00021643,3]
[334685606,1723469463235,-500.0,0.00021643,3]
[334685607,1723469463245,-1405.2,0.00021643,3]
[334685608,1723469463256,-2168.74,0.00021643,3]
[334685609,1723469463266,-744.54,0.00021643,3]
[334685610,1723469463275,-632.82,0.00021643,3]
[334685611,1723469463285,-500.0,0.00021643,3]
[334685612,1723469463295,-4498.19,0.00021643,3]
[334685613,1723469463305,-500.0,0.00021643,3]
[334685614,1723469463315,-1142.9,0.00021643,3]
[334685615,1723469463326,-500.0,0.00021643,3]
[334685616,1723469463336,-779.72,0.00021643,3]
[334685617,1723469463346,-998.91,0.00021643,3]
[334685618,1723469463356,-500.0,0.00021643,3]
[334685619,1723469463366,-500.0,0.00021643,3]
[334685620,1723469463376,-1415.09,0.00021643,3]
[334685621,1723469463387,-2354.1,0.00021643,3]
[334685622,1723469463397,-932.5,0.00021643,3]
[334685623,1723469463409,-500.0,0.00021643,3]
[334685624,1723469463420,-1240.38,0.00021643,3]
[334685625,1723469463429,-500.0,0.00021643,3]
[334685626,1723469463439,-649.7,0.00021643,3]
[334685627,1723469463450,-500.0,0.00021643,3]
[334685628,1723469463738,-500.0,0.00021643,3]
[334685629,1723469463757,-2172.06,0.00021643,3]
[334685630,1723469463769,-500.0,0.00021643,3]
[334685631,1723469463779,-1222.02,0.00021643,3]
[334685632,1723469463789,-6707.8,0.00021643,3]
[334685633,1723469463799,-500.0,0.00021643,3]
[334685634,1723469463809,-500.0,0.00021643,3]
[334685635,1723469463820,-258.05,0.000218,10]
[334685636,1723469463830,-151.90208824,0.00021822,2]
[334685637,1723469463840,-42383.12825852,0.00021906,2]
[334685638,1723469463850,-269.62008275,0.00021906,7]
[334685639,1723469463859,-529.41,0.00021917,3]
[334685640,1723469463869,-500.0,0.00021917,3]
[334685641,1723469463879,-500.0,0.00021917,3]
[334685642,1723469463891,-500.0,0.00021917,3]
[334685643,1723469463903,-593.5,0.00021917,3]
[334685644,1723469463915,-500.0,0.00021917,3]
[334685645,1723469463926,-500.0,0.00021917,3]
[334685646,1723469463937,-500.0,0.00021917,3]
[334685647,1723469463947,-516.68973606,0.00021917,3]
[334685648,1723469463957,-551.48,0.00021917,3]
[334685649,1723469463966,-668.11,0.00021917,3]
[334685650,1723469463978,-500.0,0.00021917,3]
[334685651,1723469463987,-247.38106221,0.00021917,3]
[334685652,1723469463996,-500.0,0.00021917,3]
[334685653,1723469464006,-632.05,0.00021917,3]
[334685654,1723469464016,-844.16,0.00021917,3]
[334685655,1723469464026,-517.57,0.00021917,3]
[334685656,1723469464036,-862.33,0.00021917,3]
[334685657,1723469464045,-500.0,0.00021917,3]
[334685658,1723469464055,-500.0,0.00021917,3]
[334685659,1723469464065,-500.0,0.00021917,3]
[334685660,1723469464075,-500.0,0.00021917,3]
[334685661,1723469464085,-500.0,0.00021917,3]
[334685662,1723469464095,-500.0,0.00021917,3]
[334685663,1723469464105,-500.0,0.00021917,3]
[334685664,1723469464114,-677.54,0.00021917,3]
[334685665,1723469464124,-500.0,0.00021917,3]
[334685666,1723469464134,-500.0,0.00021917,3]
[334685667,1723469464144,-500.0,0.00021917,3]
[334685668,1723469464156,-500.0,0.00021917,3]
[334685669,1723469464166,-500.0,0.00021917,3]
[334685670,1723469464176,-1210.07,0.00021917,3]
[334685671,1723469464186,-500.0,0.00021917,3]
[334685672,1723469464196,-500.0,0.00021917,3]
[334685673,1723469464205,-500.0,0.00021917,3]
[334685674,1723469464215,-500.0,0.00021917,3]
[334685675,1723469464233,-744.34,0.00021917,3]
[334685676,1723469464247,-512.05556544,0.00021917,3]
[334685677,1723469464258,-500.0,0.00021917,3]
[334685678,1723469464269,-500.0,0.00021917,3]
[334685679,1723469464279,-908.63,0.00021917,3]
[334685680,1723469464291,-2774.04,0.00021917,3]
[334685681,1723469464301,-568.52,0.00021917,3]
[334685682,1723469464311,-151.0,0.00021917,2]
[334685683,1723469464322,-500.0,0.00021917,3]
[334685684,1723469464333,-500.0,0.00021917,3]
[334685685,1723469464343,-500.0,0.00021917,3]
[334685686,1723469464355,-500.0,0.00021917,3]
[334685687,1723469464365,-500.0,0.00021917,3]
[334685688,1723469464376,-500.0,0.00021917,3]
[334685689,1723469464386,-390.04555,0.00021917,2]
[334685690,1723469464396,-1030.4,0.00021917,3]
[334685691,1723469464409,-817.35,0.00021917,3]
[334685692,1723469464419,-390.045553,0.00021917,2]
[334685693,1723469464429,-500.0,0.00021917,3]
[334685694,1723469464439,-500.0,0.00021917,3]
[334685695,1723469464449,-500.0,0.00021917,3]
[334685696,1723469464459,-990.53,0.00021917,3]
[334685697,1723469464469,-500.0,0.00021917,3]
[334685698,1723469464480,-500.0,0.00021917,3]
[334685699,1723469464490,-500.0,0.00021917,3]
[334685700,1723469464501,-377.30891,0.00021917,2]
[334685701,1723469464511,-991.56,0.00021917,3]
[334685702,1723469464521,-377.308913,0.00021917,2]
[334685703,1723469464531,-500.0,0.00021917,3]
[334685704,1723469464540,-500.0,0.00021917,3]
[334685705,1723469464550,-1364.52,0.00021917,3]
[334685706,1723469464560,-876.13,0.00021917,3]
[334685707,1723469464570,-500.0,0.00021917,3]
[334685708,1723469464580,-500.0,0.00021917,3]
[334685709,1723469464590,-514.72593159,0.00021917,3]
[334685710,1723469464600,-500.0,0.00021917,3]
[334685711,1723469464611,-1000.0,0.00021917,5]
[334685712,1723469464620,-1000.0,0.00021917,5]
[334685713,1723469464631,-1001.25553806,0.00021917,5]
[334685714,1723469464641,-500.0,0.00021917,3]
[334685715,1723469464651,-500.0,0.00021917,3]
[334685716,1723469464666,-679.91,0.00021917,3]
[334685717,1723469464676,-500.0,0.00021917,3]
[334685718,1723469464685,-500.0,0.00021917,3]
[334685719,1723469464695,-500.0,0.00021917,3]
[334685720,1723469464705,-1002.93,0.00021917,3]
[334685721,1723469464715,-762.2,0.00021917,3]
[334685722,1723469464725,-1147.29,0.00021917,3]
[334685723,1723469464735,-625.27312799,0.00021917,3]
[334685724,1723469464745,-500.0,0.00021917,3]
[334685725,1723469464755,-500.0,0.00021917,3]
[334685726,1723469464764,-500.0,0.00021917,3]
[334685727,1723469464774,-205.116128,0.00021917,2]
[334685728,1723469464784,-500.0,0.00021917,3]
[334685729,1723469464794,-205.116135,0.00021917,2]
[334685730,1723469464804,-631.6,0.00021917,3]
[334685731,1723469464814,-500.0,0.00021917,3]
[334685732,1723469464824,-500.0,0.00021917,3]
[334685733,1723469464835,-1557.04,0.00021917,3]
[334685734,1723469464844,-575.28,0.00021917,3]
[334685735,1723469464854,-875.31,0.00021917,3]
[334685736,1723469464863,-500.0,0.00021917,3]
[334685737,1723469464873,-609.93,0.00021917,3]
[334685738,1723469464883,-625.18,0.00021917,3]
[334685739,1723469464897,-500.0,0.00021917,3]
[334685740,1723469464910,-500.0,0.00021917,3]
[334685741,1723469464922,-500.0,0.00021917,3]
[334685742,1723469464932,-791.62,0.00021917,3]
[334685743,1723469464941,-500.0,0.00021917,3]
[334685744,1723469464950,-500.0,0.00021917,3]
[334685745,1723469464959,-500.0,0.00021917,3]
[334685746,1723469464969,-500.0,0.00021917,3]
[334685747,1723469464979,-634.92,0.00021917,3]
[334685748,1723469464989,-606.89,0.00021917,3]
[334685749,1723469464998,-500.0,0.00021917,3]
[334685750,1723469465008,-500.0,0.00021917,3]
[334685751,1723469465018,-829.85,0.00021917,3]
[334685752,1723469465027,-2119.11,0.00021917,3]
[334685753,1723469465037,-597.81,0.00021917,3]
[334685754,1723469465046,-500.0,0.00021917,3]
[334685755,1723469465056,-500.0,0.00021917,3]
[334685756,1723469465065,-1424.09,0.00021917,3]
[334685757,1723469465079,-500.0,0.00021917,3]
[334685758,1723469465088,-500.0,0.00021917,3]
[334685759,1723469465098,-500.0,0.00021917,3]
[334685760,1723469465108,-1052.48,0.00021917,3]
[334685761,1723469465118,-709.13,0.00021917,3]
[334685762,1723469465129,-581.43,0.00021917,3]
[334685763,1723469465138,-500.0,0.00021917,3]
[334685764,1723469465148,-500.0,0.00021917,3]
[334685765,1723469465160,-521.61,0.00021917,3]
[334685766,1723469465170,-1053.49,0.00021917,3]
[334685767,1723469465179,-500.0,0.00021917,3]
[334685768,1723469465189,-1614.62,0.00021917,3]
[334685769,1723469465198,-518.21,0.00021917,3]
[334685770,1723469465208,-1139.51,0.00021917,3]
[334685771,1723469465218,-500.0,0.00021917,3]
[334685772,1723469465228,-500.0,0.00021917,3]
[334685773,1723469465238,-1544.26,0.00021917,3]
[334685774,1723469465247,-1451.28,0.00021917,3]
[334685775,1723469465257,-500.0,0.00021917,2]
[334685776,1723469465267,-1482.26,0.00021917,3]
[334685777,1723469465277,-500.0,0.00021917,3]
[334685778,1723469465287,-500.0,0.00021917,3]
[334685779,1723469465297,-500.0,0.00021917,3]
[334685780,1723469465307,-2342.91,0.00021917,3]
[334685781,1723469465316,-500.0,0.00021917,3]
[334685782,1723469465325,-1334.65,0.00021917,3]
[334685783,1723469465335,-500.0,0.00021917,3]
[334685784,1723469465345,-500.0,0.00021917,3]
[334685785,1723469465355,-792.5,0.00021917,3]
[334685786,1723469465364,-500.0,0.00021917,3]
[334685787,1723469465375,-6539.4,0.00021917,3]
[334685788,1723469465385,-500.0,0.00021917,3]
[334685789,1723469465394,-534.12,0.00021917,2]
[334685790,1723469465405,-1001.68,0.00021917,3]
[334685791,1723469465415,-2046.93,0.00021917,3]
[334685792,1723469465424,-500.0,0.00021917,3]
[334685793,1723469465434,-1795.55,0.00021917,3]
[334685794,1723469465444,-500.0,0.00021917,3]
[334685795,1723469465454,-500.0,0.00021917,3]
[334685796,1723469465464,-500.0,0.00021917,3]
[334685797,1723469465473,-1931.14,0.00021917,3]
[334685798,1723469465483,-500.0,0.00021917,3]
[334685799,1723469465492,-500.0,0.00021917,3]
[334685800,1723469465502,-500.0,0.00021917,3]
[334685801,1723469465512,-1101.24,0.00021917,3]
[334685802,1723469465521,-529.89,0.00021917,3]
[334685803,1723469465531,-761.7,0.00021917,3]
[334685804,1723469465541,-500.0,0.00021917,3]
[334685805,1723469465550,-769.72,0.00021917,3]
[334685806,1723469465560,-500.0,0.00021917,3]
[334685807,1723469465570,-1645.37,0.00021917,3]
[334685808,1723469465579,-530.52,0.00021917,3]
[334685809,1723469465588,-536.4,0.00021917,3]
[334685810,1723469465598,-500.0,0.00021917,3]
[334685811,1723469465608,-854.3,0.00021917,3]
[334685812,1723469465617,-7227.56,0.00021917,3]
[334685813,1723469465627,-500.0,0.00021917,3]
[334685814,1723469465637,-500.0,0.00021917,3]
[334685815,1723469465647,-500.0,0.00021917,3]
[334685816,1723469465659,-743.55,0.00021917,3]
[334685817,1723469465668,-1337.68,0.00021917,3]
[334685818,1723469465678,-500.0,0.00021917,3]
[334685819,1723469465687,-500.0,0.00021917,3]
[334685820,1723469465696,-500.0,0.00021917,3]
[334685821,1723469465706,-2582.81,0.00021917,3]
[334685822,1723469465716,-500.0,0.00021917,3]
[334685823,1723469465725,-500.0,0.00021917,3]
[334685824,1723469465735,-827.28,0.00021917,3]
[334685825,1723469465744,-500.0,0.00021917,3]
[334685826,1723469465754,-786.74,0.00021917,3]
[334685827,1723469465763,-1740.42,0.00021917,3]
[334685828,1723469465773,-1325.33,0.00021917,3]
[334685829,1723469465782,-500.0,0.00021917,3]
[334685830,1723469465792,-500.0,0.00021917,3]
[334685831,1723469465802,-932.14,0.00021917,3]
[334685832,1723469465816,-500.0,0.00021917,3]
[334685833,1723469465835,-500.0,0.00021917,3]
[334685834,1723469465849,-1941.27,0.00021917,3]
[334685835,1723469465858,-500.0,0.00021917,3]
[334685836,1723469465868,-587.25,0.00021917,3]
[334685837,1723469465877,-500.0,0.00021917,3]
[334685838,1723469465889,-500.0,0.00021917,3]
[334685839,1723469465899,-500.0,0.00021917,3]
[334685840,1723469465910,-500.0,0.00021917,3]
[334685841,1723469465921,-3749.33,0.00021917,3]
[334685842,1723469465931,-8703.45,0.00021917,3]
[334685843,1723469465943,-2530.68,0.00021917,3]
[334685844,1723469465952,-500.0,0.00021917,3]
[334685845,1723469465964,-1828.7,0.00021917,3]
[334685846,1723469465976,-5397.21,0.00021917,3]
[334685847,1723469465987,-675.95,0.00021917,3]
[334685848,1723469465997,-500.0,0.00021917,3]
[334685849,1723469466006,-2519.31,0.00021917,3]
[334685850,1723469466016,-503.10120113,0.00021917,3]
[334685851,1723469466026,-1577.49,0.00021917,3]
[334685852,1723469466036,-500.0,0.00021917,3]
[334685853,1723469466045,-500.0,0.00021917,3]
[334685854,1723469466056,-500.0,0.00021917,3]
[334685855,1723469466066,-500.0,0.00021917,3]
[334685856,1723469466076,-500.0,0.00021917,3]
[334685857,1723469466085,-500.0,0.00021917,3]
[334685858,1723469466095,-1656.99,0.00021917,3]
[334685859,1723469466105,-500.0,0.00021917,3]
[334685860,1723469466115,-1691.43,0.00021917,3]
[334685861,1723469466124,-500.0,0.00021917,3]
[334685862,1723469466134,-2631.68,0.00021917,3]
[334685863,1723469466144,-988.56,0.00021917,3]
[334685864,1723469466154,-1109.71,0.00021917,3]
[334685865,1723469466164,-500.0,0.00021917,3]
[334685866,1723469466174,-50.23154328,0.00021917,3]
[334685867,1723469466204,-449.76845672,0.00021917,3]
[334685868,1723469466213,-6087.35332538,0.00021917,3]
[334685869,1723469466225,-2000.0,0.00021917,3]
[334685870,1723469466335,-500.0,0.00020821,3]
[334685871,1723469466346,-327.02954162,0.00020821,3]
[334685872,1723469466356,-500.0,0.00020821,3]
[334685873,1723469466366,-500.0,0.00020821,3]
[334685874,1723469466375,-367.25056899,0.00021,2]
[334685875,1723469466390,-7528.97828937,0.00021,2]
[334685876,1723469466400,-444.00222387,0.00021917,3]
[334685877,1723469466663,-153.0,0.00016438,2]
[334685878,1723469466676,-154.74467129,0.00019046,2]
[334685879,1723469466686,-300.0,0.00019799,2]
[334685880,1723469466696,-477.29908137,0.00020821,3]
[334685881,1723469466708,-22.70091863,0.00020821,3]
[334685882,1723469466719,-151.0,0.00020821,2]
[334685883,1723469466729,-151.0,0.00020821,2]
[334685884,1723469466739,-151.0,0.00021,2]
[334685885,1723469466864,-500.0,0.00021095,3]
[334685886,1723469466899,-151.0,0.00021095,2]
[334685887,1723469466911,-3985.15445075,0.00021917,3]
[334685888,1723469466922,-668.98,0.00021917,3]
[334685889,1723469466934,-2464.56,0.00021917,3]
[334685890,1723469466943,-282.53315152,0.00021917,3]
[334685891,1723469466956,-217.46684848,0.00021917,3]
[334685892,1723469466967,-500.0,0.00021917,3]
[334685893,1723469466978,-500.0,0.00021917,3]
[334685894,1723469466988,-1609.68,0.00021917,3]
[334685895,1723469466998,-825.74,0.00021917,3]
[334685896,1723469467007,-500.0,0.00021917,3]
[334685897,1723469467017,-3882.9,0.00021917,3]
[334685898,1723469467026,-13392.86,0.00021917,3]
[334685899,1723469467036,-1157.59,0.00021917,3]
[334685900,1723469467046,-221.44345836,0.00021917,3]
[334685901,1723469467057,-500.0,0.00021917,3]
[334685902,1723469467067,-500.0,0.00021917,3]
[334685903,1723469467077,-954.32,0.00021917,3]
[334685904,1723469467088,-2248.77,0.00021917,3]
[334685905,1723469467098,-500.0,0.00021917,3]
[334685906,1723469467108,-500.0,0.00021917,3]
[334685907,1723469467117,-1443.84,0.00021917,3]
[334685908,1723469467127,-500.0,0.00021917,3]
[334685909,1723469467137,-1824.79,0.00021917,3]
[334685910,1723469467149,-500.0,0.00021917,3]
[334685911,1723469467160,-2252.73,0.00021917,3]
[334685912,1723469467170,-500.0,0.00021917,3]
[334685913,1723469467180,-1405.2,0.00021917,3]
[334685914,1723469467189,-2168.74,0.00021917,3]
[334685915,1723469467198,-744.54,0.00021917,3]
[334685916,1723469467207,-632.82,0.00021917,3]
[334685917,1723469467217,-500.0,0.00021917,3]
[334685918,1723469467226,-4498.19,0.00021917,3]
[334685919,1723469467236,-500.0,0.00021917,3]
[334685920,1723469467245,-1142.9,0.00021917,3]
[334685921,1723469467255,-500.0,0.00021917,3]
[334685922,1723469467265,-779.72,0.00021917,3]
[334685923,1723469467274,-998.91,0.00021917,3]
[334685924,1723469467284,-500.0,0.00021917,3]
[334685925,1723469467293,-500.0,0.00021917,3]
[334685926,1723469467303,-1415.09,0.00021917,3]
[334685927,1723469467312,-2354.1,0.00021917,3]
[334685928,1723469467322,-932.5,0.00021917,3]
[334685929,1723469467332,-500.0,0.00021917,3]
[334685930,1723469467341,-1240.38,0.00021917,3]
[334685931,1723469467351,-500.0,0.00021917,3]
[334685932,1723469467361,-649.7,0.00021917,3]
[334685933,1723469467371,-500.0,0.00021917,3]
[334685934,1723469467381,-500.0,0.00021917,3]
[334685935,1723469467390,-2172.06,0.00021917,3]
[334685936,1723469467400,-529.7273562,0.00021917,3]